bitfinex-derivatives/quotes_ETHF0:USTF0_20250905
["timestamp","ask_amount","ask_price","bid_price","bid_amount"]
[1757082478817,1.03696,4338.8,4337.3,3.2078]
[1757082478818,0.41489,4337.8,4337.7,0.41487]
[1757082479322,0.41489,4337.8,4337.0,1.03738]
[1757082479323,0.41501,4336.7,4336.6,0.41499]
[1757082479624,3.2078,4337.8,4336.9,1.521]
[1757082479819,0.41486,4338.1,4337.9,0.41486]
[1757082480120,3.2078,4338.3,4337.9,0.41486]
[1757082480121,0.41484,4338.2,4337.9,1.521]
[1757082480327,3.2078,4338.3,4338.0,0.41486]
[1757082480522,3.2078,4338.3,4337.9,0.306]
[1757082480730,3.62263,4338.3,4338.2,0.41484]
[1757082480927,3.2078,4338.3,4338.2,0.41484]
[1757082481129,1.03692,4339.0,4338.2,0.41484]
[1757082481130,0.4148,4338.7,4338.6,1.9358]
[1757082481326,3.62257,4339.0,4338.9,0.41477]
[1757082481626,1.495,4339.4,4338.4,1.521]
[1757082481821,1.03694,4339.0,4338.5,0.72081]
[1757082482126,0.4148,4338.6,4338.5,0.72081]
[1757082482331,0.41477,4339.0,4338.9,0.41476]
[1757082482526,1.03682,4339.4,4338.8,1.03695]
[1757082482827,0.41475,4339.3,4339.2,0.41473]
[1757082483023,3.62248,4340.0,4339.9,0.41468]
[1757082483222,3.62247,4340.0,4339.9,1.93568]
[1757082483528,0.41466,4340.1,4340.0,0.41467]
[1757082484029,0.41465,4340.2,4339.9,1.521]
[1757082484326,0.41462,4340.6,4340.5,0.41461]
[1757082484636,2.5315,4340.8,4340.0,0.305]
[1757082484637,1.495,4340.8,4340.0,0.305]
[1757082484831,0.4146,4340.7,4340.6,0.4146]
[1757082485031,0.41458,4340.9,4340.8,0.41459]
[1757082485226,3.2078,4341.0,4340.9,0.41458]
[1757082485524,0.41464,4340.4,4340.3,0.41464]
[1757082485724,2.53148,4340.9,4339.8,1.03672]
[1757082486029,1.495,4340.9,4340.5,0.41462]
[1757082486225,3.2078,4341.0,4340.2,1.521]
[1757082486431,1.03649,4340.8,4340.0,0.71967]
[1757082486632,3.2078,4341.0,4339.4,1.521]
[1757082486932,1.03678,4339.6,4338.5,1.521]
[1757082487125,3.2078,4340.0,4339.1,1.03689]
[1757082487325,0.305,4339.9,4339.6,1.9357]
[1757082487528,0.305,4339.9,4339.6,1.93571]
[1757082487731,0.4147,4339.7,4339.6,1.93571]
[1757082487924,4.24448,4340.0,4339.5,1.03678]
[1757082487925,3.2078,4340.0,4339.5,1.03678]
[1757082488231,0.41473,4339.5,4339.3,0.305]
[1757082488433,0.41475,4339.2,4339.1,0.41475]
[1757082488733,0.41473,4339.5,4339.4,0.41472]
[1757082488932,0.41475,4339.3,4339.2,0.41473]
[1757082489225,1.03673,4339.8,4339.5,0.41471]
[1757082489424,0.41474,4339.3,4339.2,1.93573]
[1757082489733,0.41473,4339.4,4339.3,0.41471]
[1757082489938,0.41473,4339.4,4339.3,1.93571]
[1757082490126,0.41473,4339.4,4338.5,0.41479]
[1757082490127,0.41482,4338.6,4338.5,0.41479]
[1757082490426,1.03694,4338.9,4338.5,1.521]
[1757082490625,0.4148,4338.7,4338.6,0.41479]
[1757082490826,0.41479,4338.9,4338.6,1.03701]
[1757082491127,0.41476,4339.2,4339.1,1.93575]
[1757082491327,0.41476,4339.0,4338.9,0.41477]
[1757082491626,0.4148,4338.8,4338.7,2.24078]
[1757082491834,1.495,4339.2,4338.4,0.305]
[1757082492036,0.41481,4338.5,4338.4,2.24082]
[1757082492724,1.03693,4339.0,4338.4,2.24082]
[1757082492725,0.41478,4338.9,4338.8,0.41476]
[1757082492932,0.41477,4339.1,4339.0,0.41475]
[1757082493225,0.41481,4338.6,4338.4,0.305]
[1757082493428,1.03682,4339.5,4338.2,4.7288]
[1757082493633,1.495,4339.5,4338.7,0.41477]
[1757082493824,1.495,4339.5,4338.3,2.86308]
[1757082494022,1.495,4339.3,4338.3,2.24083]
[1757082494228,1.495,4338.8,4336.9,3.2078]
[1757082494426,1.495,4338.8,4336.5,0.5902]
[1757082494427,3.2078,4337.3,4336.5,0.415]
[1757082494629,1.495,4337.5,4336.4,0.41501]
[1757082494832,3.2078,4336.7,4336.0,2.03221687]
[1757082495131,1.495,4336.6,4336.0,2.03221687]
[1757082495432,1.495,4336.4,4336.0,2.03221687]
[1757082495630,0.5962,4336.5,4336.0,2.03221687]
[1757082495826,1.495,4336.4,4336.0,2.03221687]
[1757082496032,0.305,4336.8,4336.2,0.41503]
[1757082496227,0.305,4336.8,4336.0,2.03221687]
[1757082496429,3.2078,4336.6,4336.0,2.03221687]
[1757082496623,4.7028,4336.1,4335.2,0.41512]
[1757082496831,4.7028,4336.1,4334.4,0.5902]
[1757082496832,0.5962,4335.1,4331.6,0.5902]
[1757082497132,3.2078,4333.0,4332.9,0.41535]
[1757082497325,3.2078,4333.0,4332.9,1.93635]
[1757082497629,3.2078,4333.0,4332.8,0.76560418]
[1757082497822,3.2078,4333.0,4332.9,1.521]
[1757082498027,3.2078,4333.0,4332.8,0.17540418]
[1757082498229,0.3054,4332.9,4332.8,0.17400418]
[1757082498533,0.3054,4332.9,4331.6,2.071]
[1757082498534,4.0014,4332.9,4331.6,1.4808]
[1757082498730,0.1153,4335.0,4332.1,1.4808]
[1757082498731,3.2078,4332.8,4332.1,1.4808]
[1757082498936,3.2078,4332.8,4332.4,0.41539]
[1757082499138,3.2078,4332.8,4332.7,1.4808]
[1757082499540,3.2078,4332.8,4332.0,2.0691]
[1757082499741,3.2078,4332.8,4332.2,0.41541]
[1757082500240,3.5118,4332.8,4332.0,0.5883]
[1757082500434,3.5118,4332.8,4332.0,1.62689]
[1757082500629,3.2078,4333.5,4332.8,0.5883]
[1757082500840,3.2078,4333.5,4333.2,0.41532]
[1757082501042,0.41533,4333.1,4332.8,0.5883]
[1757082501237,3.2078,4332.9,4332.1,1.7848]
[1757082501442,3.62315,4332.9,4332.1,1.4808]
[1757082501837,3.2078,4332.9,4332.1,1.4808]
[1757082502036,3.2078,4332.9,4332.8,1.4808]
[1757082502739,0.41541,4332.3,4332.1,1.4808]
[1757082502942,1.03872,4331.5,4330.7,0.41556]
[1757082503243,3.2078,4331.3,4331.1,0.41552]
[1757082503445,1.03854,4332.3,4330.2,3.55116667]
[1757082503446,3.2078,4331.9,4331.6,0.41547]
[1757082503634,3.2078,4332.6,4331.8,1.03863]
[1757082503836,3.2078,4332.6,4331.3,0.304]
[1757082504141,3.2078,4332.6,4331.9,3.03267191]
[1757082504340,0.41539,4332.5,4332.2,0.41541]
[1757082504543,4.3608,4332.6,4331.9,3.03267191]
[1757082504544,3.2078,4332.6,4332.5,0.41539]
[1757082504942,3.2078,4332.6,4332.0,0.5883]
[1757082505141,3.2078,4332.6,4331.9,0.304]
[1757082505341,3.2078,4332.0,4331.2,0.304]
[1757082505538,0.41555,4330.8,4330.3,0.304]
[1757082505842,3.2078,4331.0,4330.3,2.95995897]
[1757082506038,3.2078,4331.0,4330.8,0.41555]
[1757082506240,3.2078,4331.0,4330.3,2.95995897]
[1757082506436,3.2078,4331.4,4330.7,1.0389]
[1757082506640,1.94453,4332.1,4331.5,0.41548]
[1757082506839,1.5291,4332.1,4331.5,0.41548]
[1757082507045,1.5291,4332.1,4331.3,3.2078]
[1757082507241,1.5291,4332.1,4331.1,0.304]
[1757082507443,1.5291,4332.1,4331.7,0.41546]
[1757082507647,1.94453,4332.1,4331.5,0.41547]
[1757082507842,1.8331,4332.5,4332.0,0.41543]
[1757082508145,1.8331,4332.5,4331.5,1.0387]
[1757082508146,1.5291,4332.5,4331.6,0.304]
[1757082508547,0.41542,4332.2,4331.6,0.71947]
[1757082508848,0.4154,4332.4,4331.6,0.304]
[1757082509045,1.5291,4331.9,4331.6,0.304]
[1757082509340,1.5291,4331.9,4331.3,1.196]
[1757082509341,2.56753,4332.7,4331.7,0.41546]
[1757082509542,1.03845,4332.6,4331.7,0.41546]
[1757082509747,1.03845,4332.6,4331.3,0.304]
[1757082509748,0.41544,4332.0,4331.5,0.41548]
[1757082509944,1.5291,4331.7,4331.3,0.304]
[1757082510139,1.5291,4331.7,4331.4,0.41549]
[1757082510338,2.1399,4331.6,4330.5,0.41558]
[1757082510541,2.1399,4331.6,4330.4,0.41558]
[1757082510838,1.5291,4331.5,4331.0,3.2078]
[1757082511141,1.5291,4331.6,4330.8,0.71954]
[1757082511340,1.5291,4331.6,4329.8,1.03912]
[1757082511341,0.6108,4331.6,4329.8,1.03912]
[1757082511540,1.5291,4331.1,4330.1,0.41562]
[1757082511737,1.5291,4331.1,4329.5,4.24699]
[1757082511738,3.2078,4330.7,4329.5,3.2078]
[1757082511942,1.5291,4330.6,4329.5,3.2078]
[1757082512347,3.8186,4330.2,4329.2,2.86093484]
[1757082512538,3.2078,4329.7,4329.2,2.86093484]
[1757082512943,0.6108,4329.5,4329.2,2.86093484]
[1757082513448,2.4439,4330.2,4329.2,4.05693484]
[1757082513642,1.5291,4330.1,4329.2,2.86093484]
[1757082513836,1.5291,4330.1,4329.3,4.55004]
[1757082514148,1.5291,4330.1,4329.8,0.41565]
[1757082514352,1.5291,4330.1,4329.3,0.41569]
[1757082514658,1.5291,4329.7,4329.2,2.86093484]
[1757082514839,0.9138,4329.6,4329.2,2.86093484]
[1757082515949,3.2078,4329.3,4329.2,2.86093484]
[1757082516142,3.2078,4329.3,4327.0,2.02984776]
[1757082516345,1.5291,4328.6,4327.0,2.02984776]
[1757082516542,3.2078,4327.6,4326.8,1.4808]
[1757082516747,3.2078,4327.6,4326.9,0.41592]
[1757082516748,3.5108,4327.6,4326.9,0.41592]
[1757082516946,3.5108,4327.6,4326.8,1.4808]
[1757082517244,3.5108,4327.6,4326.6,0.41595]
[1757082517245,3.5108,4327.6,4326.7,0.41594]
[1757082517451,3.2078,4327.6,4327.1,0.4159]
[1757082517652,0.303,4327.7,4327.2,1.89669]
[1757082517951,0.303,4327.7,4326.8,0.303]
[1757082518148,3.2078,4328.1,4326.8,0.303]
[1757082518353,0.303,4328.4,4327.2,1.4808]
[1757082518554,3.2078,4328.8,4328.2,1.89659]
[1757082518747,0.303,4329.2,4328.2,1.4808]
[1757082518950,0.303,4329.2,4328.2,1.8966]
[1757082519148,3.2078,4329.4,4328.5,1.03943]
[1757082519448,1.5291,4329.8,4328.6,1.89656]
[1757082519749,0.303,4330.2,4329.4,0.41568]
[1757082519946,3.2078,4331.0,4329.4,1.03922]
[1757082520147,3.2078,4331.0,4330.4,0.41559]
[1757082520343,1.8321,4331.2,4330.2,1.4808]
[1757082520751,1.5291,4331.1,4329.5,1.4808]
[1757082520949,3.2078,4329.7,4328.8,2.0691]
[1757082521145,3.2078,4329.1,4328.8,1.4808]
[1757082521448,3.5108,4329.1,4328.1,1.4808]
[1757082521642,3.5108,4329.1,4327.5,0.303]
[1757082521643,3.2078,4328.9,4327.5,1.4808]
[1757082521845,4.7369,4329.0,4327.5,1.4808]
[1757082522051,0.303,4328.9,4327.9,1.4808]
[1757082522257,2.031,4328.8,4327.2,1.4808]
[1757082522455,3.2078,4328.7,4327.5,0.41587]
[1757082522650,3.2078,4329.3,4327.8,1.4808]
[1757082522851,0.303,4329.2,4328.4,1.4808]
[1757082523150,0.303,4329.2,4328.0,1.4808]
[1757082523349,0.23102,4329.1,4327.9,3.2078]
[1757082523554,1.5291,4328.5,4326.9,1.4808]
[1757082523754,1.5291,4328.3,4327.0,0.41591]
[1757082523952,1.5291,4328.3,4326.9,1.4808]
[1757082523953,3.2078,4327.9,4326.9,1.4808]
[1757082524151,3.2078,4327.9,4327.2,0.41589]
[1757082524452,0.303,4328.5,4327.0,1.4808]
[1757082524652,3.2078,4327.7,4326.3,4.6886]
[1757082524852,0.303,4327.6,4326.3,4.6886]
[1757082525257,0.303,4327.6,4326.6,0.41595]
[1757082525753,4.7369,4327.7,4326.8,1.4808]
[1757082525947,3.2078,4328.2,4326.9,1.03981]
[1757082526153,3.2078,4328.2,4327.5,0.41586]
[1757082526348,0.303,4328.3,4327.4,1.89667]
[1757082526549,0.303,4328.3,4327.4,1.4808]
[1757082526949,3.2078,4328.8,4327.4,1.4808]
[1757082527155,3.2078,4328.8,4327.2,0.5883]
[1757082527156,3.5108,4328.8,4327.6,1.4808]
[1757082527457,1.5291,4328.7,4327.6,1.4808]
[1757082527754,1.5291,4328.7,4327.2,1.00419]
[1757082527950,1.5291,4328.7,4327.6,2.52045]
[1757082528156,0.303,4328.6,4328.0,0.41582]
[1757082528359,3.5108,4328.8,4328.2,1.4587]
[1757082528659,0.41575,4328.8,4328.6,0.41575]
[1757082528860,0.303,4329.1,4328.1,1.4587]
[1757082529061,1.03936,4328.8,4328.1,1.4587]
[1757082529255,2.54492,4329.0,4328.1,1.4587]
[1757082529256,1.03946,4328.4,4328.1,1.4587]
[1757082529564,0.41578,4328.4,4328.2,0.41579]
[1757082529858,0.41596,4326.5,4326.4,1.4587]
[1757082530058,1.03989,4326.6,4325.5,3.5098]
[1757082530263,4.24775,4326.4,4325.5,3.5098]
[1757082530557,4.24764,4326.9,4326.0,3.2078]
[1757082530759,1.03993,4326.5,4326.0,3.7977]
[1757082530951,1.03987,4326.7,4326.1,1.4587]
[1757082531154,1.03989,4326.6,4326.2,1.4587]
[1757082531355,1.03987,4326.7,4326.2,1.4587]
[1757082531554,1.03982,4326.9,4326.2,1.4587]
[1757082531759,0.41597,4326.4,4326.3,1.4587]
[1757082532164,0.41596,4326.6,4326.3,1.4587]
[1757082532361,0.416,4326.1,4326.0,0.5899]
[1757082532564,0.416,4326.1,4326.0,2.3506]
[1757082532967,0.1155,4326.3,4326.0,4.8919]
[1757082533155,0.1155,4326.3,4326.1,3.2078]
[1757082533461,0.1155,4326.3,4325.6,3.2078]
[1757082533762,0.1155,4326.3,4325.6,3.62384]
[1757082534070,3.2078,4325.7,4324.9,1.4587]
[1757082534562,1.5056,4325.9,4324.9,1.4587]
[1757082535066,3.2078,4325.1,4324.2,1.4587]
[1757082535258,3.2078,4324.6,4323.3,1.4587]
[1757082535459,3.2078,4323.7,4323.3,1.4587]
[1757082535661,3.2078,4323.7,4323.3,3.02614226]
[1757082535965,0.302,4323.6,4322.8,0.17580994]
[1757082536166,3.2078,4323.0,4322.9,1.4587]
[1757082536366,1.5056,4322.9,4322.8,0.17580994]
[1757082536767,1.5056,4322.8,4321.3,0.41646]
[1757082536962,3.2078,4322.2,4321.5,3.2078]
[1757082537179,3.2078,4322.2,4321.4,1.4587]
[1757082537355,1.5056,4322.8,4321.6,1.87513]
[1757082537356,3.5098,4322.4,4321.6,1.87513]
[1757082537662,3.5098,4322.4,4321.2,1.4587]
[1757082537663,3.2078,4322.4,4321.2,1.4587]
[1757082537862,3.2078,4321.9,4321.2,1.4587]
[1757082538163,3.2078,4323.0,4321.0,2.03378218]
[1757082538365,3.2078,4321.1,4318.5,7.25568034]
[1757082538564,3.2078,4319.6,4319.0,1.5587]
[1757082538860,3.2078,4320.0,4319.3,1.4587]
[1757082539055,3.2078,4320.0,4319.3,3.83487295]
[1757082539263,3.2078,4319.4,4319.3,2.37617295]
[1757082539957,3.2078,4319.4,4319.3,7.83487295]
[1757082540160,3.2078,4320.5,4319.3,7.83487295]
[1757082540457,3.2078,4321.4,4320.4,3.2078]
[1757082540660,3.2078,4320.5,4319.7,0.41662]
[1757082540866,3.2078,4321.0,4320.0,5.2564]
[1757082541059,1.92211,4320.8,4320.5,2.37617295]
[1757082541260,0.41651,4320.8,4320.6,1.4587]
[1757082541460,0.41651,4320.9,4320.5,3.83487295]
[1757082541658,0.41653,4320.7,4320.5,2.37617295]
[1757082541965,1.5056,4321.6,4320.6,4.0]
[1757082542163,0.41644,4321.6,4320.8,1.4587]
[1757082542363,0.41644,4321.6,4320.6,2.37617295]
[1757082542364,3.2078,4321.0,4320.9,0.302]
[1757082542569,3.2078,4321.4,4321.0,0.5899]
[1757082542770,0.41647,4321.3,4320.6,2.37617295]
[1757082543066,3.2078,4321.7,4321.0,0.41649]
[1757082543266,3.2078,4322.2,4322.1,1.4587]
[1757082543468,1.15061253,4322.6,4322.5,0.41635]
[1757082543661,1.53265068,4323.5,4323.4,1.4587]
[1757082543864,3.2078,4325.1,4323.8,0.41622]
[1757082544064,3.2078,4325.1,4324.1,3.2078]
[1757082544264,3.2078,4325.1,4324.4,2.37617295]
[1757082544265,1.5056,4325.0,4324.4,2.37617295]
[1757082544460,0.41623,4323.8,4322.4,1.4587]
[1757082544660,3.2078,4324.1,4323.1,1.4587]
[1757082544861,3.2078,4325.1,4324.0,5.2564]
[1757082545062,3.2078,4325.7,4324.8,1.4587]
[1757082545267,3.2078,4325.7,4325.0,2.0486]
[1757082545468,3.2078,4326.7,4326.2,1.8747]
[1757082545768,3.2078,4327.8,4327.3,0.41588]
[1757082545958,3.2078,4328.3,4327.4,0.302]
[1757082546159,3.2078,4328.3,4326.9,1.4587]
[1757082546364,3.2078,4327.8,4326.9,1.4587]
[1757082546570,1.5056,4327.6,4326.0,3.7977]
[1757082546764,0.1155,4327.7,4325.4,31.923]
[1757082546765,0.1155,4327.7,4326.5,3.2078]
[1757082547069,0.1155,4327.7,4326.7,1.4587]
[1757082547267,3.2078,4327.2,4324.9,3.2078]
[1757082547470,1.5056,4326.5,4325.8,3.2078]
[1757082547665,3.2078,4326.6,4325.4,4.6665]
[1757082547867,0.41603,4325.9,4325.6,3.2078]
[1757082548066,0.41603,4325.9,4324.1,1.63041]
[1757082548067,0.41604,4325.9,4325.1,3.2078]
[1757082548267,3.2078,4326.1,4325.0,3.2078]
[1757082548568,3.2078,4326.1,4325.1,3.07113798]
[1757082548764,0.41606,4325.6,4325.2,0.302]
[1757082548970,3.2078,4326.1,4325.3,1.4587]
[1757082549177,0.41602,4326.0,4325.3,1.4587]
[1757082549367,3.2078,4326.1,4325.4,0.301]
[1757082549568,0.65414785,4327.5,4326.0,1.04004]
[1757082549875,0.65414785,4327.5,4326.9,3.2078]
[1757082550072,0.65414785,4327.5,4325.7,1.1822]
[1757082550073,13.98281,4327.2,4325.7,1.1822]
[1757082550373,1.5056,4325.6,4323.7,1.1822]
[1757082550569,3.2078,4324.0,4323.7,1.1822]
[1757082550764,3.2078,4324.5,4323.6,1.4587]
[1757082550964,3.2078,4324.5,4323.8,2.97427536]
[1757082551168,3.2078,4324.5,4323.8,3.2078]
[1757082551364,1.04007,4326.0,4323.5,0.301]
[1757082551365,3.2078,4325.0,4324.3,3.2078]
[1757082551565,3.2078,4325.7,4324.5,1.4587]
[1757082551771,3.2078,4325.2,4324.5,1.4587]
[1757082552069,1.5056,4324.5,4323.7,0.71724]
[1757082552371,3.2078,4324.7,4324.0,3.2078]
[1757082552568,3.2078,4324.7,4323.8,2.93998046]
[1757082552764,3.2078,4324.7,4324.1,6.16996524]
[1757082552970,0.41609,4325.3,4324.6,4.6665]
[1757082553176,0.41614,4324.8,4324.5,3.2078]
[1757082553373,1.5056,4325.0,4324.6,3.2078]
[1757082553671,1.5056,4324.3,4324.2,3.06907626]
[1757082553878,0.4162,4324.2,4324.0,0.301]
[1757082554072,4.7134,4324.9,4324.1,0.301]
[1757082554377,3.2078,4325.4,4324.3,3.2078]
[1757082554673,3.2078,4325.6,4325.2,0.41609]
[1757082554871,1.5056,4325.8,4325.3,0.301]
[1757082555064,1.53727945,4326.1,4325.4,3.2078]
[1757082555268,3.2078,4325.8,4325.3,3.06807527]
[1757082555464,0.6089,4325.2,4324.6,0.301]
[1757082555672,4.7134,4324.8,4324.7,0.301]
[1757082555866,1.5056,4324.6,4323.6,3.06759437]
[1757082556072,1.04037,4324.7,4323.6,0.41624]
[1757082556265,0.41619,4324.2,4323.8,0.41623]
[1757082556472,3.2078,4324.8,4323.7,0.301]
[1757082556676,0.41612,4325.0,4324.0,3.62401]
[1757082556872,0.6089,4325.2,4324.1,0.41619]
[1757082557076,0.41614,4324.8,4324.2,0.71718]
[1757082557274,1.5056,4325.0,4324.3,0.301]
[1757082557468,0.41615,4324.7,4324.2,0.41619]
[1757082557781,1.5056,4324.5,4324.3,0.289]
[1757082558078,1.5056,4325.1,4324.3,0.289]
[1757082558279,0.41614,4324.8,4324.3,0.289]
[1757082558470,0.6089,4325.2,4324.3,0.289]
[1757082558471,1.5829,4325.0,4324.3,0.289]
[1757082558672,1.5829,4325.9,4325.7,0.41604]
[1757082558871,1.5829,4325.9,4324.5,2.08193]
[1757082558872,1.5829,4325.8,4324.5,0.0011]
[1757082559075,1.5829,4325.8,4324.4,3.05305461]
[1757082559076,3.62396,4324.6,4324.4,0.301]
[1757082559276,1.5829,4324.8,4323.9,3.2078]
[1757082559573,3.2078,4324.4,4324.0,0.301]
[1757082559877,1.5829,4324.3,4324.0,0.301]
[1757082560075,3.2066,4325.0,4324.2,1.04049]
[1757082560283,3.2078,4326.9,4325.7,0.41605]
[1757082560575,3.2078,4326.9,4324.9,5.28845]
[1757082560576,1.5829,4325.7,4324.9,3.2078]
[1757082560773,3.2078,4326.8,4325.7,0.41605]
[1757082560975,3.2078,4326.8,4325.7,0.71705]
[1757082561275,5.44606599,4325.8,4324.7,31.916]
[1757082561474,4.7907,4325.2,4325.1,0.41611]
[1757082561774,3.2078,4325.3,4324.8,3.29801133]
[1757082561976,5.20679,4325.3,4324.9,0.301]
[1757082562170,3.2078,4325.3,4324.9,0.301]
[1757082562374,1.99895,4325.7,4324.9,0.301]
[1757082562573,4.90328599,4325.8,4324.7,31.916]
[1757082562777,1.5829,4325.2,4324.7,31.916]
[1757082563077,3.2078,4324.8,4324.3,0.41618]
[1757082563272,1.5829,4324.7,4324.2,0.301]
[1757082563469,3.2078,4324.5,4324.2,0.301]
[1757082563675,3.2078,4325.0,4324.9,0.41613]
[1757082563874,1.5829,4325.5,4325.4,0.41608]
[1757082564081,1.5829,4325.5,4325.4,0.71708]
[1757082564383,0.41607,4325.5,4325.4,0.301]
[1757082564574,1.5829,4325.6,4325.3,0.41608]
[1757082564769,0.4161,4325.2,4324.9,0.301]
[1757082565072,3.2078,4325.0,4324.9,0.301]
[1757082565269,3.8106,4325.0,4322.4,3.2078]
[1757082565474,0.4164,4322.1,4321.7,0.301]
[1757082565677,4.7907,4322.8,4321.7,0.301]
[1757082565972,2.1857,4323.0,4322.3,3.2078]
[1757082566175,2.1857,4323.0,4322.4,0.301]
[1757082566388,4.7907,4322.5,4322.4,2.96403918]
[1757082566569,4.7907,4322.5,4322.4,0.301]
[1757082566775,4.7907,4322.5,4321.9,0.41641]
[1757082566977,4.7907,4322.5,4322.4,3.05906473]
[1757082566978,1.5829,4322.5,4322.4,3.05906473]
[1757082567185,1.5829,4322.5,4322.4,0.71737]
[1757082567371,1.5829,4322.4,4322.3,1.45376473]
[1757082567575,3.2078,4322.5,4321.9,0.301]
[1757082567881,3.2078,4323.1,4322.0,0.301]
[1757082568073,3.2078,4323.6,4322.9,0.41632]
[1757082568272,4.7907,4323.9,4322.2,1.04097]
[1757082568476,1.5829,4323.3,4322.6,0.41635]
[1757082568777,1.15687547,4324.1,4323.5,0.41625]
[1757082568972,1.15687547,4324.1,4322.7,5.5306504]
[1757082568973,2.73977547,4324.1,4324.0,0.41621]
[1757082569176,2.73977547,4324.1,4324.0,0.301]
[1757082569678,2.73977547,4324.1,4322.7,2.55973]
[1757082569884,3.8106,4324.0,4321.9,2.55994]
[1757082570179,0.41627,4323.4,4322.7,3.27095001]
[1757082570377,0.41633,4322.9,4322.7,2.96995001]
[1757082570677,2.08168,4322.8,4320.7,35.1268]
[1757082570883,1.99935,4321.6,4320.8,0.301]
[1757082571074,1.5829,4321.6,4320.8,0.301]
[1757082571275,1.5829,4321.6,4321.1,0.41649]
[1757082571579,4.7907,4322.3,4321.4,0.41645]
[1757082571784,4.7907,4322.3,4321.5,0.301]
[1757082571984,4.7907,4322.3,4321.5,0.71745]
[1757082572186,4.7907,4322.3,4321.3,0.41647]
[1757082572485,4.7907,4322.3,4321.6,2.99668785]
[1757082572780,3.2078,4322.3,4321.7,0.3]
[1757082572978,3.2078,4322.3,4321.7,0.71643]
[1757082573173,3.2078,4322.3,4321.7,3.06079635]
[1757082573379,1.5829,4322.1,4321.8,0.3]
[1757082573593,1.5829,4322.1,4320.7,31.919]
[1757082573884,0.6028,4322.0,4321.0,2.93845952]
[1757082574088,1.01921,4322.0,4321.1,0.41649]
[1757082574274,0.6028,4322.0,4320.8,2.93845952]
[1757082574474,1.5829,4321.9,4320.7,31.919]
[1757082574680,1.5829,4321.9,4320.9,0.3]
[1757082574874,1.5829,4321.9,4321.4,0.41645]
[1757082575083,1.5829,4321.9,4320.9,0.3]
[1757082575084,1.5829,4321.9,4321.5,0.3]
[1757082575279,1.5829,4323.4,4322.0,1.04102]
[1757082575475,1.5829,4323.4,4322.1,0.3]
[1757082575675,1.5829,4323.4,4323.2,0.41629]
[1757082575879,2.17588547,4324.0,4323.4,0.41627]
[1757082575880,1.75967547,4324.0,4323.4,0.41627]
[1757082576087,1.5829,4323.9,4323.6,0.41625]
[1757082576289,1.5829,4323.8,4323.7,0.71624]
[1757082576489,1.15687547,4324.0,4323.9,0.41622]
[1757082576784,2.73977547,4324.0,4323.9,0.71622]
[1757082576985,2.73977547,4324.0,4323.9,3.5078]
[1757082577191,1.15687547,4324.0,4323.9,10.92819077]
[1757082577377,3.12017945,4324.9,4324.0,1.04054]
[1757082577580,0.6028,4325.0,4324.5,3.2078]
[1757082577776,1.5829,4324.9,4324.8,0.41614]
[1757082577988,1.5829,4325.7,4324.9,0.41612]
[1757082578187,4.36661284,4325.8,4325.3,0.41609]
[1757082578482,1.5829,4325.7,4325.3,0.3]
[1757082578684,0.41605,4325.7,4325.3,0.3]
[1757082579081,1.5829,4325.5,4325.4,0.3]
[1757082579689,4.36661284,4325.8,4325.4,0.3]
[1757082579888,1.15881284,4325.8,4325.4,7.3415012]
[1757082580187,1.15881284,4325.8,4325.7,0.41605]
[1757082580586,2.74171284,4325.8,4325.7,3.3415012]
[1757082580781,1.15881284,4325.8,4325.7,7.7575512]
[1757082580986,1.15881284,4325.8,4325.7,6.5493012]
[1757082581284,4.7907,4325.8,4325.7,0.3]
[1757082581482,5.20675,4325.8,4325.7,0.3]
[1757082581884,1.5829,4325.2,4325.1,31.923]
[1757082582201,1.5829,4325.2,4323.2,31.919]
[1757082582202,0.41618,4324.5,4323.2,31.919]
[1757082582388,0.41618,4324.4,4323.3,0.3]
[1757082582683,1.5829,4324.4,4324.0,2.96388961]
[1757082582884,1.5829,4325.0,4324.2,3.2078]
[1757082583186,3.2078,4325.3,4324.3,2.98678997]
[1757082583382,1.5829,4324.4,4324.3,2.98678997]
[1757082583578,1.99908,4324.4,4324.3,3.28678997]
[1757082583780,0.41625,4323.7,4323.2,31.919]
[1757082583985,1.5829,4323.6,4323.3,0.71628]
[1757082584186,1.5829,4323.6,4323.4,0.41628]
[1757082584388,3.2078,4323.9,4323.3,3.03666277]
[1757082584585,2.60196,4323.6,4323.5,3.03666277]
[1757082584884,1.5829,4322.8,4321.7,1.5189]
[1757082585079,1.5829,4322.8,4321.0,3.2078]
[1757082585080,0.41629,4323.4,4322.8,0.41633]
[1757082585281,1.5829,4323.6,4322.9,0.3]
[1757082585483,0.41639,4322.3,4321.7,0.41643]
[1757082585683,1.5829,4323.4,4322.7,0.41634]
[1757082585887,0.1156,4323.5,4322.8,1.8189]
[1757082586085,0.1156,4323.5,4322.5,4.09320449]
[1757082586086,0.41632,4323.0,4322.9,0.3]
[1757082586291,0.4164,4322.2,4321.3,1.5189]
[1757082586485,1.5829,4322.2,4322.0,3.46869449]
[1757082586694,3.3234,4323.5,4322.1,0.3]
[1757082586985,3.3234,4323.5,4322.4,1.5189]
[1757082587191,0.4163,4323.2,4322.7,1.93524]
[1757082587385,0.4163,4323.2,4322.8,0.3]
[1757082587590,3.2078,4323.2,4322.8,3.06853284]